bitfinex/quotes_SOLUSD_20250429
["timestamp","ask_amount","ask_price","bid_price","bid_amount"]
[1745934111494,82.963,147.53,147.5,0.14216157]
[1745934111788,82.963,147.53,147.5,24.92103174]
[1745934112393,82.963,147.53,147.5,31.70031336]
[1745934114300,82.963,147.53,147.46,26.0]
[1745934114301,24.77887017,147.51,147.46,26.0]
[1745934114485,82.9,147.5,147.47,6.78104021]
[1745934114687,82.9,147.5,147.47,31.55991038]
[1745934116703,82.9,147.5,147.47,6.78104021]
[1745934117000,82.9,147.5,147.47,31.55991038]
[1745934119408,82.9,147.5,147.48,31.70147696]
[1745934120606,82.963,147.53,147.5,0.14216157]
[1745934120779,82.963,147.53,147.5,24.92103174]
[1745934121306,82.963,147.53,147.5,31.70061981]
[1745934121508,82.963,147.53,147.51,24.77887017]
[1745934121811,82.963,147.53,147.52,24.77887017]
[1745934122100,0.063,147.53,147.52,43.5706806]
[1745934123407,0.063,147.53,147.52,50.34942246]
[1745934125001,0.063,147.53,147.52,25.57055229]
[1745934125303,0.063,147.53,147.52,50.34942246]
[1745934125709,0.063,147.53,147.52,31.6997736]
[1745934126926,0.063,147.53,147.52,6.92090343]
[1745934127088,0.063,147.53,147.52,31.6997736]
[1745934132385,0.063,147.53,147.52,50.34942246]
[1745934132917,1e-08,147.53,147.52,51.70468721]
[1745934133125,0.063,147.57,147.56,18.64964886]
[1745934133418,0.063,147.57,147.56,90.80645508]
[1745934134090,0.03,147.59,147.58,44.64964886]
[1745934134298,0.03,147.59,147.58,69.5706806]
[1745934135200,0.03,147.59,147.58,76.3466665]
[1745934135921,0.063,147.6,147.59,18.79181043]
[1745934136088,1e-08,147.6,147.59,43.71284217]
[1745934136713,0.063,147.63,147.62,44.79181043]
[1745934136901,0.063,147.63,147.62,86.60487495]
[1745934137108,0.063,147.63,147.62,111.38374512]
[1745934137316,0.063,147.63,147.62,118.15789496]
[1745934138199,1e-08,147.63,147.62,118.30005653]
[1745934138397,0.03,147.65,147.63,18.79181043]
[1745934138603,0.03,147.65,147.64,43.5706806]
[1745934139519,0.063,147.66,147.65,0.14216157]
[1745934139822,0.063,147.66,147.65,50.92103174]
[1745934140503,1e-08,147.66,147.65,69.5706806]
[1745934141523,1e-08,147.68,147.67,26.0]
[1745934141698,1e-08,147.68,147.67,44.92435607]
[1745934142392,1e-08,147.69,147.68,44.79181043]
[1745934142602,1e-08,147.69,147.68,85.1706806]
[1745934142942,1e-08,147.69,147.68,86.52427311]
[1745934143630,1e-08,147.69,147.68,93.29567072]
[1745934143802,1e-08,147.69,147.68,91.94207821]
[1745934145848,1e-08,147.69,147.68,67.16320804]
[1745934146043,1e-08,147.69,147.68,91.94207821]
[1745934146415,1e-08,147.69,147.68,67.16320804]
[1745934146722,1e-08,147.69,147.68,91.94207821]
[1745934148838,1e-08,147.69,147.68,73.29242935]
[1745934150748,1e-08,147.69,147.68,41.74216157]
[1745934152442,1e-08,147.69,147.68,48.51355918]
[1745934152616,1e-08,147.69,147.68,41.74216157]
[1745934153620,1e-08,147.69,147.68,15.74216157]
[1745934153824,24.77887018,147.69,147.68,15.6]
[1745934154729,1e-08,147.69,147.68,15.6]
[1745934155042,24.77887018,147.69,147.65,41.58]
[1745934155339,24.77887017,147.67,147.65,41.58]
[1745934156327,107.67887017,147.66,147.65,15.58]
[1745934156645,82.9,147.65,147.61,41.58]
[1745934156825,107.67887017,147.64,147.61,41.58]
[1745934157030,107.67887017,147.64,147.61,15.58]
[1745934157238,107.67887017,147.64,147.61,22.35460788]
[1745934157431,107.67887017,147.64,147.61,15.58]
[1745934157746,24.77887017,147.63,147.61,15.58]
[1745934157953,24.77887017,147.62,147.61,15.58]
[1745934158149,24.77887017,147.62,147.61,15.72216157]
[1745934158857,97.36224942,147.64,147.61,15.58]
[1745934159044,97.36224942,147.64,147.57,248.363]
[1745934159045,24.77887017,147.62,147.57,248.363]
[1745934159243,24.77887017,147.61,147.58,0.14216157]
[1745934159965,24.77887017,147.6,147.57,255.13924706]
[1745934160463,24.77887017,147.6,147.58,0.14216157]
[1745934162843,107.67887017,147.58,147.57,0.063]
[1745934163939,82.9,147.58,147.57,0.063]
[1745934165249,82.9,147.58,147.57,24.98403174]
[1745934165451,82.9,147.61,147.57,24.98403174]
[1745934165647,82.9,147.61,147.58,24.77887017]
[1745934166262,24.77887017,147.6,147.57,0.063]
[1745934166433,24.77887017,147.58,147.57,0.063]
[1745934167353,107.67887017,147.6,147.57,6.83944507]
[1745934168070,24.77887017,147.58,147.57,0.063]
[1745934169361,82.9,147.6,147.57,0.063]
[1745934169540,82.9,147.6,147.57,24.84187017]
[1745934169743,107.67887017,147.6,147.57,0.063]
[1745934170564,107.67887017,147.6,147.57,6.83944507]
[1745934171258,24.77887017,147.59,147.57,0.063]
[1745934171461,24.77887017,147.58,147.57,0.063]
[1745934177982,31.55485607,147.58,147.57,0.063]
[1745934178746,24.77887017,147.58,147.57,0.063]
[1745934179552,31.55485607,147.58,147.57,0.063]
[1745934180377,39.70001764,147.58,147.57,0.063]
[1745934180675,90.47888781,147.58,147.57,0.063]
[1745934181248,0.14216157,147.57,147.55,0.063]
[1745934181469,49.69990191,147.56,147.55,0.063]
[1745934182045,132.59990191,147.56,147.55,0.063]
[1745934182674,24.77887017,147.56,147.55,0.063]
[1745934183461,0.14216157,147.57,147.55,0.063]
[1745934183462,24.77887017,147.57,147.55,0.063]
[1745934183858,24.77887017,147.56,147.55,0.063]
[1745934184061,8.003,147.58,147.55,0.063]
[1745934184261,0.14216157,147.61,147.56,24.77887017]
[1745934184573,24.77887017,147.59,147.55,24.84187017]
[1745934184951,24.77887017,147.59,147.55,0.063]
[1745934185375,24.77887017,147.59,147.55,6.8403636]
[1745934186277,6.91684184,147.61,147.55,6.8403636]
[1745934186479,24.77887017,147.59,147.55,6.8403636]
[1745934186858,24.77887017,147.58,147.55,6.8403636]
[1745934187065,24.77887017,147.57,147.55,0.063]
[1745934187271,24.77887017,147.56,147.55,0.063]
[1745934190161,31.55577448,147.56,147.55,0.063]
[1745934190360,56.47680622,147.56,147.55,0.063]
[1745934190678,56.47680622,147.56,147.51,0.063]
[1745934190679,0.14216157,147.55,147.51,0.063]
[1745934190890,24.77887017,147.52,147.51,0.063]
[1745934191458,24.92103174,147.52,147.51,0.063]
[1745934192065,31.6997736,147.52,147.51,0.063]
[1745934195713,0.14216157,147.48,147.44,0.063]
[1745934195995,24.77887017,147.45,147.44,0.063]
[1745934197573,24.77887017,147.46,147.44,0.063]
[1745934197776,82.837,147.45,147.44,0.063]
[1745934197978,107.61587017,147.45,147.44,0.063]
[1745934198683,107.61587017,147.45,147.44,0.063]
[1745934199910,24.77887017,147.45,147.44,0.063]
[1745934202182,24.77887017,147.47,147.44,0.063]
[1745934202593,24.77887017,147.46,147.44,0.063]
[1745934202918,107.67887017,147.45,147.44,0.063]
[1745934203095,107.82103174,147.45,147.44,0.063]
[1745934204825,107.67887017,147.45,147.44,0.063]
[1745934207410,82.9,147.45,147.44,0.063]
[1745934207829,107.67887017,147.45,147.44,0.063]
[1745934209340,82.9,147.45,147.44,0.063]
[1745934211431,82.9,147.45,147.44,24.98403174]
[1745934212930,82.9,147.45,147.44,31.7664517]
[1745934213242,82.9,147.48,147.45,0.14216157]
[1745934214240,82.9,147.48,147.45,24.92103174]
[1745934214455,82.9,147.48,147.46,24.77887017]
[1745934214758,82.9,147.48,147.47,24.92103174]
[1745934215054,107.67887017,147.51,147.47,24.92103174]
[1745934215262,82.9,147.5,147.48,6.78058041]
[1745934217565,107.67887017,147.5,147.48,6.78058041]
[1745934219865,82.9,147.5,147.48,6.78058041]
[1745934220565,107.67887017,147.5,147.45,24.92103174]
[1745934220772,24.77887017,147.47,147.45,6.78195998]
[1745934221065,24.77887017,147.48,147.45,6.78195998]
[1745934222233,82.9,147.49,147.46,0.14216157]
[1745934222437,82.9,147.49,147.47,24.77887017]
[1745934223165,82.9,147.49,147.48,0.14216157]
[1745934223458,82.9,147.51,147.49,0.14216157]
[1745934223662,82.9,147.51,147.49,24.92103174]
[1745934224157,82.9,147.51,147.49,6.77993382]
[1745934224366,107.67887017,147.51,147.49,6.77993382]
[1745934225737,82.9,147.51,147.49,6.77993382]
[1745934226667,82.9,147.51,147.48,6.78058041]
[1745934229081,107.67887017,147.51,147.48,6.78058041]
[1745934229884,107.67887017,147.51,147.47,31.7019602]
[1745934232089,82.9,147.51,147.47,31.7019602]
[1745934233564,107.67887017,147.51,147.47,6.92309003]
[1745934233761,24.77887017,147.5,147.46,31.56014735]
[1745934234069,114.4581253,147.51,147.46,31.56014735]
[1745934234793,82.9,147.5,147.46,31.56014735]
[1745934235279,82.9,147.5,147.46,6.78127718]
[1745934235480,82.9,147.5,147.46,31.56014735]
[1745934235961,82.9,147.5,147.47,24.77887017]
[1745934236684,82.9,147.5,147.48,24.77887017]
[1745934236997,82.9,147.5,147.49,24.77887017]
[1745934237174,82.9,147.5,147.48,24.92103174]
[1745934237377,82.9,147.5,147.49,6.78012068]
[1745934239192,82.9,147.5,147.48,22.37414212]
[1745934242090,82.9,147.5,147.47,37.5924438]
[1745934244800,82.9,147.5,147.47,30.81154319]
[1745934245296,82.9,147.5,147.47,37.59238417]
[1745934250901,82.9,147.49,147.47,15.36]
[1745934251206,98.35154319,147.48,147.44,32.84504138]
[1745934251402,82.9,147.47,147.44,48.29658457]
[1745934253526,82.9,147.47,147.45,15.45154319]
[1745934253692,6.92108005,147.52,147.45,15.45154319]
[1745934253693,82.9,147.49,147.46,15.45154319]
[1745934254011,82.9,147.49,147.47,15.45154319]
[1745934254212,82.9,147.49,147.48,6.78058041]
[1745934255989,82.9,147.49,147.47,22.23242223]
[1745934256298,82.9,147.53,147.48,15.59370476]
[1745934256500,82.9,147.52,147.5,15.45154319]
[1745934257512,82.9,147.52,147.51,15.45154319]
[1745934257699,82.9,147.52,147.51,15.59370476]
[1745934258300,82.9,147.52,147.51,22.37290617]
[1745934259009,82.9,147.52,147.49,15.59370476]
[1745934259718,82.9,147.52,147.51,15.45154319]
[1745934261113,82.9,147.52,147.51,22.2307446]
[1745934261515,82.9,147.56,147.52,0.14216157]
[1745934261691,82.9,147.55,147.53,15.45154319]
[1745934261898,82.9,147.55,147.54,15.45154319]
[1745934262411,82.9,147.55,147.52,15.59370476]
[1745934262996,82.9,147.55,147.53,22.22982557]
[1745934263194,0.03,147.57,147.55,0.14216157]
[1745934263405,0.03,147.57,147.56,15.45154319]
[1745934264124,0.03,147.57,147.56,15.59370476]
[1745934266019,0.03,147.57,147.55,15.45154319]
[1745934266337,15.48154319,147.57,147.54,15.26]
[1745934266812,98.35154319,147.56,147.54,15.26]
[1745934267498,105.12845104,147.56,147.54,15.26]
[1745934267707,114.38765058,147.56,147.54,15.26]
[1745934269438,89.67690785,147.56,147.54,15.26]
[1745934269603,107.61074273,147.56,147.54,15.26]
[1745934270403,24.71074273,147.55,147.54,15.26]
[1745934272598,89.67699319,147.56,147.54,15.26]
[1745934272599,114.38773592,147.56,147.54,15.26]
[1745934272893,82.9,147.55,147.54,15.26]
[1745934277309,114.38810633,147.55,147.5,15.26]
[1745934277511,107.61074273,147.54,147.5,15.26]
[1745934277712,24.71074273,147.53,147.5,15.26]
[1745934277919,24.71074273,147.51,147.5,15.26]
[1745934278432,6.78012068,147.49,147.45,15.323]
[1745934278611,24.71074273,147.47,147.45,15.323]
[1745934278807,82.9,147.46,147.45,15.323]
[1745934281017,107.61074273,147.46,147.45,15.323]
[1745934281724,82.9,147.46,147.45,15.323]
[1745934283134,82.9,147.46,147.45,22.10495998]
[1745934285741,82.9,147.46,147.45,46.95786428]
[1745934286046,82.9,147.5,147.46,0.14216157]
[1745934286222,82.9,147.49,147.46,24.8529043]
[1745934286542,107.61074273,147.49,147.45,22.10495998]
[1745934286744,24.71074273,147.48,147.45,22.10495998]
[1745934287342,24.71074273,147.46,147.45,15.323]
[1745934287723,98.36381738,147.47,147.45,15.323]
[1745934287924,82.9,147.47,147.45,15.323]
[1745934288550,15.46381738,147.46,147.45,15.323]
[1745934290057,15.46381738,147.47,147.45,15.323]
[1745934291262,15.46381738,147.46,147.45,15.323]
[1745934292066,17.03281738,147.48,147.45,15.323]
[1745934292565,15.46381738,147.47,147.45,15.323]
[1745934293174,15.46381738,147.46,147.45,15.323]
[1745934293360,22.24531744,147.46,147.45,15.323]
[1745934293665,22.24531744,147.46,147.45,0.063]
[1745934293886,2.41073729,147.48,147.45,0.063]
[1745934293887,0.14216157,147.47,147.45,0.063]
[1745934294168,15.46381738,147.47,147.45,0.063]
[1745934294466,8.34965591,147.48,147.45,0.063]
[1745934294467,15.46381738,147.46,147.45,0.063]
[1745934297047,15.46381738,147.47,147.45,0.063]
[1745934297870,15.46381738,147.48,147.45,0.063]
[1745934298674,15.46381738,147.47,147.45,0.063]
[1745934300377,7.76416574,147.49,147.45,0.063]
[1745934300562,15.46381738,147.48,147.45,0.063]
[1745934300762,15.46381738,147.47,147.45,0.063]
[1745934302777,15.46381738,147.48,147.45,0.063]
[1745934303077,26.0,147.5,147.45,15.52681738]
[1745934303078,41.46381738,147.5,147.45,15.52681738]
[1745934303383,15.46381738,147.49,147.45,0.063]
[1745934303880,15.46381738,147.49,147.45,15.52681738]
[1745934304069,82.9,147.49,147.46,22.24531744]
[1745934305248,82.9,147.49,147.46,15.60597895]
[1745934305452,82.9,147.49,147.47,15.46381738]
[1745934306382,82.9,147.49,147.48,6.78058041]
[1745934306591,82.9,147.49,147.48,22.24439779]
[1745934311490,82.9,147.49,147.48,6.78058041]
[1745934311676,82.9,147.49,147.47,15.2]
[1745934311863,98.36381738,147.49,147.47,15.2]
[1745934312869,15.46381738,147.48,147.47,15.2]
[1745934313071,15.46381738,147.48,147.45,6.84476566]
[1745934313279,82.9,147.47,147.45,6.84476566]
[1745934313662,82.9,147.47,147.45,15.52681738]
[1745934313862,82.9,147.47,147.45,0.063]
[1745934313863,82.9,147.46,147.45,0.063]
[1745934316583,23.2292163,147.46,147.45,0.063]
[1745934317292,0.14216157,147.43,147.42,0.063]
[1745934317468,16.44771624,147.43,147.42,0.063]
[1745934317984,31.91153362,147.43,147.42,0.063]
[1745934318291,31.91153362,147.43,147.41,0.063]
[1745934318292,51.22861043,147.42,147.41,0.063]
[1745934318466,82.15624519,147.42,147.41,0.063]
[1745934318686,63.50659633,147.42,147.41,0.063]
[1745934318879,70.28993644,147.42,147.41,0.063]
[1745934319609,88.9395853,147.42,147.41,0.063]
[1745934323205,70.28993644,147.42,147.41,0.063]
[1745934325202,82.837,147.4,147.39,0.063]
[1745934325390,15.46381738,147.41,147.39,0.063]
[1745934325592,15.60597895,147.4,147.39,0.063]
[1745934326000,16.44771624,147.4,147.39,0.063]
[1745934326413,15.60597895,147.4,147.39,0.063]
[1745934327826,15.46381738,147.4,147.39,0.063]
[1745934328212,15.60597895,147.41,147.39,0.063]
[1745934328528,82.9,147.4,147.39,0.063]
[1745934330013,98.36381738,147.4,147.39,0.063]
[1745934330326,22.39023946,147.4,147.39,0.063]
[1745934330495,23.23197675,147.4,147.39,0.063]
[1745934331215,16.44771624,147.4,147.39,0.063]
[1745934331410,0.84173729,147.41,147.39,0.063]
[1745934331613,15.46381738,147.41,147.39,0.063]
[1745934332014,15.46381738,147.4,147.39,0.063]
[1745934332215,15.46381738,147.41,147.39,0.063]
[1745934333103,15.46381738,147.42,147.39,0.063]
[1745934333318,16.44771624,147.43,147.39,15.52681738]
[1745934333698,15.60597895,147.43,147.39,15.52681738]
[1745934334222,15.46381738,147.43,147.39,15.52681738]
[1745934334408,33.76606856,147.45,147.39,15.52681738]
[1745934334613,15.46381738,147.43,147.39,15.52681738]
[1745934335230,15.46381738,147.42,147.39,22.31125818]
[1745934335537,15.46381738,147.42,147.39,6.8474408]
[1745934337029,15.46381738,147.41,147.39,0.063]
[1745934337232,15.46381738,147.4,147.39,0.063]
[1745934341830,22.24773045,147.41,147.39,0.063]
[1745934342036,82.9,147.4,147.39,0.063]
[1745934342735,82.9,147.4,147.37,22.24937636]
[1745934344518,15.46381738,147.39,147.36,6.84899785]
[1745934344812,98.36381738,147.39,147.36,6.84899785]
[1745934345638,82.9,147.39,147.36,22.31281523]
[1745934345860,82.9,147.39,147.37,22.24936462]
[1745934346030,82.9,147.39,147.38,15.46381738]
[1745934346232,82.9,147.39,147.37,22.24936462]
[1745934346431,82.9,147.39,147.38,15.46381738]
[1745934347738,82.9,147.39,147.38,22.24899854]
[1745934347933,82.9,147.39,147.38,22.39116011]
[1745934348337,15.46381738,147.44,147.39,0.14216157]
[1745934348338,82.9,147.43,147.39,0.14216157]
[1745934348546,82.9,147.42,147.4,15.46381738]
[1745934349821,82.9,147.42,147.4,22.24776683]
[1745934350654,82.9,147.42,147.41,15.46381738]
[1745934350861,82.9,147.42,147.41,15.60597895]
[1745934351039,82.9,147.42,147.41,30.64597895]
[1745934352034,82.9,147.42,147.41,15.04]
[1745934353451,82.9,147.42,147.41,37.28761766]
[1745934356459,82.9,147.42,147.41,15.04]
[1745934357647,82.9,147.42,147.41,37.28761766]
[1745934358462,82.9,147.42,147.41,15.04]
[1745934359961,82.9,147.42,147.41,21.82380028]
[1745934360381,82.9,147.42,147.41,37.28761766]
[1745934360536,82.9,147.42,147.41,37.42977923]
[1745934360733,82.9,147.47,147.42,0.14216157]
[1745934360955,82.9,147.46,147.43,15.46381738]
[1745934361155,82.9,147.46,147.44,15.46381738]
[1745934361359,82.9,147.46,147.42,0.14216157]
[1745934361547,98.36381738,147.46,147.42,15.46381738]
[1745934364073,82.9,147.46,147.43,15.60597895]
[1745934364367,82.9,147.46,147.44,6.78241996]
[1745934364667,82.9,147.46,147.45,15.46381738]
[1745934365067,82.9,147.46,147.45,15.60597895]
[1745934365365,98.36381738,147.46,147.42,0.14216157]
[1745934365571,82.9,147.45,147.42,22.24702887]
[1745934365865,82.9,147.45,147.42,6.78321149]
[1745934366171,15.46381738,147.43,147.37,15.04]
[1745934366377,15.46381738,147.39,147.37,15.04]
[1745934366562,82.9,147.38,147.37,15.04]
[1745934369974,82.9,147.38,147.37,30.50381738]
[1745934370177,82.9,147.38,147.37,15.04]
[1745934371065,909.06241379,165.37,147.37,15.04]
[1745934371066,82.9,147.41,147.38,0.14216157]
[1745934371676,82.9,147.41,147.39,15.46381738]
[1745934372274,82.9,147.41,147.4,15.46381738]
[1745934372802,82.9,147.41,147.38,0.14216157]
[1745934372970,82.9,147.41,147.38,15.46381738]
[1745934373587,82.9,147.41,147.38,22.24889867]
[1745934374467,82.9,147.41,147.38,15.46381738]
[1745934374897,98.36381738,147.41,147.37,21.82548655]
[1745934375096,82.9,147.4,147.37,37.28930393]
[1745934375288,82.9,147.4,147.37,21.82548655]
[1745934375574,82.9,147.4,147.37,37.28930393]
[1745934375777,82.9,147.4,147.38,15.46381738]
[1745934376090,82.9,147.4,147.37,21.82548655]
[1745934376297,82.9,147.4,147.38,15.46381738]
[1745934376600,98.36381738,147.39,147.37,15.04]
[1745934378475,15.46381738,147.38,147.36,0.063]
[1745934378702,89.68496303,147.39,147.36,0.063]
[1745934378703,98.36381738,147.37,147.36,0.063]
[1745934379900,82.9,147.37,147.36,0.063]
[1745934382278,82.9,147.37,147.36,0.063]
[1745934382606,98.36381738,147.37,147.36,0.063]
[1745934383579,82.9,147.37,147.36,0.063]
[1745934384410,15.46381738,147.37,147.36,0.063]
[1745934384584,16.44771624,147.37,147.36,0.063]
[1745934385090,61.0973651,147.37,147.36,0.063]
[1745934385406,58.86512406,147.37,147.36,0.063]
[1745934385788,43.40130668,147.37,147.36,0.063]
[1745934386394,59.00728563,147.37,147.36,1e-08]
[1745934386600,44.79181043,147.34,147.33,0.063]
[1745934386779,18.933972,147.33,147.32,0.063]
[1745934387092,34.39778938,147.33,147.31,0.063]
[1745934387296,18.79181043,147.31,147.3,0.063]
[1745934387488,41.04403321,147.31,147.3,0.063]
[1745934389990,22.39438435,147.31,147.3,0.063]
[1745934390818,41.04403321,147.31,147.3,0.063]
[1745934391991,6.93056697,147.31,147.3,0.063]
[1745934392203,22.39438435,147.31,147.3,0.063]
[1745934392598,6.93056697,147.31,147.3,0.063]
[1745934392808,41.04403321,147.31,147.3,0.063]
[1745934396531,41.04403321,147.31,147.3,1e-08]
[1745934396696,41.04403321,147.31,147.29,0.063]
[1745934396697,109.04216157,147.28,147.26,0.063]
[1745934396901,124.50597895,147.28,147.26,0.063]
[1745934398329,131.2957671,147.28,147.26,0.063]
[1745934400325,124.50597895,147.28,147.26,0.063]
[1745934400702,83.04216157,147.28,147.26,0.063]
[1745934401101,98.50597895,147.28,147.26,0.063]
[1745934401525,82.9,147.28,147.26,0.063]
[1745934401731,0.14216157,147.31,147.27,15.52681738]
[1745934401911,15.46381738,147.32,147.28,15.46381738]
[1745934402106,15.60597895,147.33,147.29,15.46381738]
[1745934402303,15.46381738,147.34,147.3,22.25229585]
[1745934402825,0.14216157,147.34,147.31,15.46381738]
[1745934403400,15.60597895,147.34,147.29,14.98]
[1745934403706,15.60597895,147.34,147.29,39.76910485]
[1745934403707,24.78910485,147.33,147.29,39.76910485]
[1745934405104,31.71929957,147.32,147.29,14.98]
[1745934405310,24.93126642,147.32,147.29,14.98]
[1745934405635,0.14216157,147.33,147.29,46.55838519]
[1745934405806,0.14216157,147.33,147.3,24.78910485]
[1745934406303,24.78910485,147.33,147.29,46.55838519]
[1745934406533,24.93126642,147.31,147.27,0.063]
[1745934406716,24.78910485,147.29,147.27,0.063]
[1745934406904,107.68910485,147.3,147.27,0.063]
[1745934407104,82.9,147.3,147.27,24.85210485]
[1745934409245,82.9,147.3,147.27,31.64233235]
[1745934409426,82.9,147.3,147.28,24.78910485]
[1745934409934,82.9,147.3,147.29,24.78910485]
[1745934410657,0.14216157,147.32,147.29,24.78910485]
[1745934410943,0.14216157,147.32,147.27,0.063]
[1745934411149,24.78910485,147.32,147.28,24.78910485]
[1745934411322,24.93126642,147.31,147.27,24.85210485]
[1745934411948,24.93126642,147.31,147.27,31.64225601]
[1745934412552,0.14216157,147.33,147.27,31.64225601]
[1745934412732,0.14216157,147.31,147.27,31.64225601]
[1745934412928,24.93126642,147.28,147.27,0.063]
[1745934414431,82.774,147.26,147.24,0.063]
[1745934414732,82.774,147.25,147.24,0.063]
[1745934417144,0.14216157,147.25,147.24,0.063]
[1745934419143,31.57956198,147.27,147.24,0.063]
[1745934419326,0.14216157,147.26,147.24,0.063]
[1745934420058,0.14216157,147.27,147.24,0.063]
[1745934420644,24.93126642,147.27,147.24,0.063]
[1745934420951,24.93126642,147.25,147.24,0.063]
[1745934421453,0.14216157,147.25,147.24,0.063]
[1745934422156,7.63200385,147.27,147.24,24.85210485]
[1745934422157,0.84173729,147.27,147.24,24.85210485]
[1745934422455,0.14216157,147.27,147.25,24.78910485]
[1745934422832,0.14216157,147.29,147.25,24.78910485]
[1745934423029,24.93126642,147.29,147.25,24.78910485]
[1745934423231,24.93126642,147.29,147.25,31.58022974]
[1745934423431,0.14216157,147.29,147.27,24.78910485]
[1745934423854,24.93126642,147.29,147.25,31.58022974]
[1745934424339,24.93126642,147.29,147.24,31.64358828]
[1745934424540,0.14216157,147.27,147.24,0.063]
[1745934424847,0.14216157,147.27,147.24,24.85210485]
[1745934425359,0.14216157,147.27,147.25,24.78910485]
[1745934425957,0.14216157,147.29,147.25,24.78910485]
[1745934426158,82.9,147.26,147.25,24.78910485]
[1745934426969,82.9,147.26,147.25,31.58027632]
[1745934427156,82.9,147.26,147.24,31.64358367]
[1745934427359,82.9,147.26,147.24,0.063]
[1745934427870,82.9,147.25,147.24,0.063]
[1745934428643,82.9,147.25,147.24,24.85210485]
[1745934428870,82.9,147.25,147.24,0.063]
[1745934430469,82.9,147.25,147.24,24.85210485]
[1745934431143,82.9,147.25,147.24,31.64373755]
[1745934433473,82.9,147.25,147.24,0.063]
[1745934434273,82.9,147.25,147.24,31.64373755]
[1745934435550,82.9,147.25,147.24,24.85210485]
[1745934435866,82.9,147.25,147.24,31.64373755]
[1745934436265,82.9,147.25,147.24,31.78589912]
[1745934437664,82.9,147.25,147.24,22.4914669]
[1745934438469,48.89059605,147.25,147.24,41.14111576]
[1745934438674,48.89059605,147.31,147.26,0.14216157]
[1745934438887,48.89059605,147.3,147.27,14.92]
[1745934439085,48.89059605,147.3,147.28,15.49467263]
[1745934439271,48.89059605,147.3,147.28,22.28418997]
[1745934439468,48.89059605,147.3,147.29,15.49467263]
[1745934439789,0.14216157,147.32,147.29,15.49467263]
[1745934439990,15.6368342,147.32,147.28,22.28418997]
[1745934440492,32.95939141,147.34,147.29,15.49467263]
[1745934440862,0.14216157,147.32,147.29,15.49467263]
[1745934441062,0.14216157,147.33,147.3,15.49467263]
[1745934441588,0.14216157,147.33,147.31,15.49467263]
[1745934442100,0.03,147.34,147.32,15.49467263]
[1745934442786,0.03,147.34,147.31,15.49467263]
[1745934443002,0.03,147.34,147.32,15.49467263]
[1745934443498,0.03,147.34,147.33,22.2821565]
[1745934445170,0.03,147.34,147.33,15.49467263]
[1745934445576,0.03,147.34,147.33,22.2821565]
[1745934446078,0.03,147.34,147.33,22.42431807]
[1745934446686,82.63586666,147.36,147.33,22.42431807]
[1745934446904,82.63586666,147.36,147.35,15.49467263]
[1745934447914,82.63586666,147.36,147.35,22.28123523]
[1745934448203,0.03,147.37,147.36,0.14216157]
[1745934448381,0.03,147.37,147.36,15.6368342]
[1745934449702,0.03,147.37,147.36,24.89963169]
[1745934449904,0.03,147.37,147.36,31.68573375]
[1745934452092,0.03,147.37,147.36,50.33538261]
[1745934452594,0.03,147.39,147.38,26.0]
[1745934452801,0.03,147.39,147.38,84.38928055]
[1745934453389,0.03,147.4,147.39,43.54928055]
[1745934454206,0.03,147.4,147.39,50.33400135]
[1745934454811,0.03,147.4,147.39,31.68435249]
[1745934461699,0.03,147.4,147.38,21.62517823]
[1745934461893,0.03,147.4,147.38,46.38264835]
[1745934462106,0.03,147.4,147.39,24.75747012]
[1745934462918,0.03,147.4,147.39,31.54219092]
[1745934463627,0.03,147.4,147.38,21.62507813]
[1745934463805,82.63586666,147.39,147.38,14.84]